bitfinex/quotes_ETHUSD_20240821
["timestamp","ask_amount","ask_price","bid_price","bid_amount"]
[1724252010517,4.7013855,2595.0,2593.7,3.85537]
[1724252010518,3.85454,2594.4,2593.7,3.85537]
[1724252010805,3.85455,2594.4,2593.7,3.85549]
[1724252011104,3.85455,2594.4,2593.5,3.85571]
[1724252011105,3.85461,2594.3,2593.5,3.85571]
[1724252011392,5.4321,2594.6,2593.5,0.385571]
[1724252011703,3.85437,2594.5,2593.2,5.5663]
[1724252011859,3.85402,2594.7,2593.9,3.8551]
[1724252012200,6.85378,2594.9,2593.2,5.5663]
[1724252012201,3.85394,2594.8,2593.2,5.5663]
[1724252012495,3.85471,2594.3,2593.6,3.85552]
[1724252012662,3.85439,2594.5,2593.8,3.85534]
[1724252012992,3.85439,2594.5,2593.8,3.8553]
[1724252013196,3.85453,2594.4,2593.6,7.71102]
[1724252013494,3.8539,2594.8,2593.6,4.626602]
[1724252013730,6.2798955,2595.0,2593.3,3.0]
[1724252013731,3.85471,2594.3,2593.3,3.0]
[1724252013911,5.6455,2594.6,2593.3,3.85599]
[1724252014192,5.6455,2594.6,2593.7,3.85547]
[1724252014193,3.85453,2594.4,2593.7,3.85547]
[1724252014401,3.85454,2594.4,2593.7,3.85545]
[1724252014747,3.85477,2594.2,2593.5,3.85567]
[1724252014951,3.85454,2594.4,2593.6,3.85556]
[1724252015151,3.85479,2594.2,2593.5,3.85567]
[1724252015387,3.85479,2594.2,2593.2,5.5663]
[1724252015644,3.85528,2593.9,2593.2,5.5663]
[1724252015753,3.85587,2593.5,2592.9,3.85658]
[1724252015955,3.85574,2593.6,2592.7,4.37754]
[1724252016188,3.85574,2593.6,2592.9,3.85655]
[1724252016400,3.85574,2593.6,2592.7,4.37756]
[1724252016702,3.85574,2593.6,2592.3,5.5535]
[1724252016703,3.85596,2593.4,2592.3,5.5535]
[1724252017000,7.71294,2593.1,2592.4,3.85739]
[1724252017208,3.85646,2593.1,2592.3,3.85749]
[1724252017510,3.85646,2593.1,2592.3,3.85748]
[1724252017659,3.85624,2593.2,2592.5,3.85727]
[1724252017869,5.3312,2593.8,2592.9,3.85659]
[1724252018057,5.3312,2593.8,2593.0,0.385659]
[1724252018265,3.85498,2594.1,2592.6,5.5038]
[1724252018483,3.85452,2594.4,2593.6,3.85556]
[1724252018484,3.85467,2594.3,2593.6,3.85556]
[1724252018682,3.85462,2594.3,2593.6,7.71112]
[1724252018884,3.85462,2594.3,2593.6,3.85556]
[1724252019180,3.8541,2594.7,2594.0,3.85492]
[1724252019520,9.43763,2595.5,2594.7,3.85398]
[1724252019713,9.43763,2595.5,2594.5,3.85417]
[1724252019714,5.5847,2595.5,2594.5,3.85417]
[1724252019860,5.5847,2595.5,2594.5,4.239587]
[1724252019861,3.85326,2595.2,2594.5,4.239587]
[1724252020064,3.85324,2595.3,2594.5,0.385417]
[1724252020262,5.5847,2595.5,2594.0,5.1894]
[1724252020495,3.85349,2595.1,2594.2,3.85474]
[1724252020899,3.85381,2594.9,2594.0,9.04437]
[1724252021223,3.85455,2594.4,2593.6,9.430556]
[1724252021359,3.85455,2594.4,2593.7,3.85548]
[1724252021566,3.85419,2594.6,2593.6,9.430576]
[1724252021796,3.8547,2594.3,2593.5,3.85577]
[1724252022012,3.8547,2594.3,2593.6,3.85562]
[1724252022401,9.824001,2594.8,2593.6,3.85562]
[1724252022402,3.85441,2594.5,2593.6,3.85562]
[1724252022880,3.85534,2593.8,2593.7,0.1180344]
[1724252023079,7.71068,2593.8,2593.7,0.1180344]
[1724252023294,5.4661,2593.9,2593.0,3.85653]
[1724252023517,3.0,2594.4,2592.8,5.5064]
[1724252023518,8.603,2594.4,2592.8,5.5064]
[1724252023717,3.8556,2593.7,2593.1,0.11858042]
[1724252023881,3.85619,2593.3,2592.9,0.11876249]
[1724252024229,3.85619,2593.3,2592.4,3.85741]
[1724252024230,3.85627,2593.2,2592.5,3.85717]
[1724252024369,3.85627,2593.2,2592.4,3.85731]
[1724252024370,3.85627,2593.2,2593.0,0.11867145]
[1724252024713,3.85627,2593.2,2592.4,3.85731]
[1724252024918,3.85627,2593.2,2593.1,0.11858042]
[1724252025132,3.85627,2593.2,2592.4,4.765611]
[1724252025416,3.85566,2593.6,2592.4,0.908301]
[1724252025671,3.0,2594.1,2593.0,5.3909]
[1724252025826,3.85462,2594.3,2593.4,3.85583]
[1724252026026,6.93286922,2594.5,2593.6,7.71105]
[1724252026234,3.85499,2594.1,2593.5,0.11821638]
[1724252026372,3.8546,2594.3,2593.7,0.1180344]
[1724252026571,3.8546,2594.3,2593.6,0.11812539]
[1724252026572,1.07874692,2594.3,2593.6,0.11812539]
[1724252026789,5.3696,2594.5,2593.1,4.39541]
[1724252026790,3.85489,2594.2,2593.1,3.85631]
[1724252027029,3.85505,2594.0,2593.7,0.11846777]
[1724252027224,3.85544,2593.8,2593.1,3.8563]
[1724252027595,3.85522,2593.9,2593.1,3.85628]
[1724252027779,3.85522,2593.9,2593.2,3.85622]
[1724252028283,3.85522,2593.9,2593.1,3.85628]
[1724252028484,3.85522,2593.9,2593.2,3.85614]
[1724252028735,3.85522,2593.9,2593.1,3.85628]
[1724252028876,5.2636,2593.9,2592.9,3.85659]
[1724252029080,9.11861,2594.1,2593.2,3.85611]
[1724252029291,9.11861,2594.1,2593.1,3.85632]
[1724252029292,12.97358,2594.1,2593.1,3.85632]
[1724252029512,9.11859,2594.1,2593.3,3.85597]
[1724252029725,5.2636,2594.1,2593.0,3.85651]
[1724252029897,3.85538,2593.8,2593.1,3.85638]
[1724252030105,7.71085,2593.8,2593.0,4.294385]
[1724252030309,3.85538,2593.8,2593.1,3.85629]
[1724252030897,3.85538,2593.8,2593.0,0.437965]
[1724252030898,4.38147,2594.0,2593.0,0.437965]
[1724252030899,3.85573,2593.6,2593.0,0.437965]
[1724252031095,3.85541,2593.8,2593.1,3.85629]
[1724252031434,4.38147,2594.0,2593.4,3.85593]
[1724252031435,3.85511,2594.0,2593.4,3.85593]
[1724252031599,5.2636,2594.1,2593.4,3.85583]
[1724252031805,3.85523,2593.9,2593.2,7.71228]
[1724252032112,3.85463,2594.3,2593.3,3.85601]
[1724252032311,3.85463,2594.3,2593.1,0.4294255]
[1724252032312,3.85508,2594.0,2593.1,4.2857255]
[1724252032516,3.85512,2594.0,2593.1,3.85629]
[1724252032758,3.85535,2593.8,2592.8,0.52314]
[1724252032959,3.85415632,2594.0,2593.2,3.85621]
[1724252033106,3.85552,2593.7,2593.0,3.85644]
[1724252033451,3.8562,2593.3,2592.6,7.71406]
[1724252033603,3.8562,2593.3,2592.6,7.71407]
[1724252033800,3.8562,2593.3,2592.6,3.85703]
[1724252034004,3.85628,2593.2,2592.4,3.8573]
[1724252034233,3.85588,2593.5,2592.8,3.85674]
[1724252034650,3.85588,2593.5,2592.8,7.71346]
[1724252034843,3.85557,2593.7,2592.8,0.771346]
[1724252035047,5.2978,2593.8,2593.2,3.85615]
[1724252035203,9.15315,2593.8,2593.2,3.85615]
[1724252035408,9.15315,2593.8,2593.0,3.8564]
[1724252035637,3.85557,2593.7,2593.0,3.8564]
[1724252035923,9.15315,2593.8,2593.2,3.8561]
[1724252036112,3.85522,2593.9,2593.2,3.8561]
[1724252036313,5.3046,2594.2,2592.2,3.85767]
[1724252036314,5.3046,2594.2,2593.4,3.85591]
[1724252036518,5.3046,2594.2,2593.5,3.85571]
[1724252036755,3.85492,2594.1,2593.5,3.85571]
[1724252036918,3.85492,2594.1,2593.4,3.85586]
[1724252037127,3.85492,2594.1,2593.5,0.385586]
[1724252037318,7.70992,2594.1,2593.5,0.385586]
[1724252037559,3.85492,2594.1,2593.5,0.385586]
[1724252037706,3.85492,2594.1,2593.6,0.11914562]
[1724252038207,3.85452,2594.4,2593.6,3.97472562]
[1724252038425,3.8544,2594.5,2593.9,3.8551]
[1724252038622,3.85454,2594.4,2593.8,3.85525]
[1724252038846,3.85454,2594.4,2594.0,0.1187488]
[1724252039001,3.8544,2594.5,2593.9,0.11883976]
[1724252039203,3.85475,2594.2,2594.1,0.11865784]
[1724252039405,7.7098,2594.1,2594.0,0.1187488]
[1724252039712,3.85507,2594.0,2593.2,7.71226]
[1724252039940,3.85507,2594.0,2593.3,1.337936]
[1724252039941,3.8552,2593.9,2593.3,1.337936]
[1724252040456,3.85557,2593.7,2593.0,3.85644]
[1724252040720,3.85535,2593.8,2593.0,3.85644]
[1724252040721,3.85535,2593.8,2593.1,3.85635]
[1724252040890,3.85591,2593.5,2592.8,3.85672]
[1724252041098,3.85617,2593.3,2592.7,5.6712]
[1724252041225,3.85663,2593.0,2592.2,3.85764]
[1724252041426,7.71328,2593.0,2592.2,4.243394]
[1724252041625,3.85663,2593.0,2592.2,4.243394]
[1724252041884,3.85601,2593.4,2592.6,3.85711]
[1724252042042,3.8554,2593.8,2593.1,3.85628]
[1724252042247,3.0,2594.2,2593.5,3.8557]
[1724252042248,6.85483,2594.2,2593.5,3.8557]
[1724252042427,3.85505,2594.0,2593.3,3.85599]
[1724252042632,5.2466,2594.5,2593.1,3.85625]
[1724252042633,3.85537,2593.8,2593.1,3.85625]
[1724252042942,3.85483,2594.2,2593.1,0.771284]
[1724252043188,3.85502,2594.1,2593.4,3.85585]
[1724252043344,3.85502,2594.1,2593.3,3.856]
[1724252043345,3.85483,2594.2,2593.3,3.856]
[1724252043680,3.85506,2594.0,2593.3,3.856]
[1724252044041,3.8552,2593.9,2593.2,5.4405]
[1724252044236,3.8552,2593.9,2593.1,3.85626]
[1724252044237,3.85545,2593.8,2593.1,3.85637]
[1724252044543,8.150006,2594.4,2592.9,3.85661]
[1724252044750,3.85544,2593.8,2593.1,3.85638]
[1724252044964,3.85511,2594.0,2593.3,3.85608]
[1724252045130,3.85482,2594.2,2593.5,3.85578]
[1724252045327,3.85482,2594.2,2593.6,0.385578]
[1724252045575,3.8547,2594.3,2593.5,3.85578]
[1724252045741,7.71003,2594.1,2593.4,3.85594]
[1724252045944,3.855,2594.1,2593.3,7.71195]
[1724252046197,3.85506,2594.0,2593.3,7.71195]
[1724252046483,7.71004,2594.1,2593.4,3.85579]
[1724252046646,3.855,2594.1,2593.4,3.85579]
[1724252046846,3.855,2594.1,2593.4,7.71163]
[1724252047092,3.85466,2594.3,2593.5,3.85569]
[1724252047093,3.85467,2594.3,2593.5,3.85569]
[1724252047285,3.85485,2594.2,2593.6,0.771148]
[1724252047441,9.10097,2594.5,2593.6,4.626738]
[1724252047640,6.85406,2594.7,2594.0,3.85504]
[1724252047878,3.85406,2594.7,2594.0,3.85495]
[1724252048193,5.5405,2595.3,2593.5,5.3519]
[1724252048421,5.5405,2595.3,2593.6,0.53519]
[1724252048422,3.85456,2594.4,2593.6,0.53519]
[1724252048557,4.40736,2595.2,2593.6,0.53519]
[1724252048558,3.8536,2595.0,2593.6,0.53519]
[1724252048759,3.85486,2594.2,2593.5,5.3519]
[1724252048968,3.85454,2594.4,2593.5,9.20761]
[1724252049209,5.4276,2594.5,2593.5,9.20764]
[1724252049370,3.85484,2594.2,2593.5,3.85574]
[1724252049572,3.85484,2594.2,2593.6,0.385574]
[1724252049875,3.85531,2593.9,2593.1,3.85626]
[1724252050076,5.4276,2594.5,2593.4,3.85592]
[1724252050077,3.85498,2594.1,2593.4,3.85592]
[1724252050279,3.85522,2593.9,2593.2,3.85614]
[1724252050812,3.85522,2593.9,2593.2,7.71229]
[1724252051030,3.85617,2593.3,2592.7,0.919769]
[1724252051326,3.85664,2593.0,2592.3,9.47785]
[1724252051664,3.85631,2593.2,2592.4,3.85741]
[1724252051862,3.85662,2593.0,2592.3,3.85744]
[1724252052107,3.85713,2592.6,2592.0,3.85796]
[1724252052414,3.85747,2592.4,2592.0,1.37362754]
[1724252052600,3.85747,2592.4,2591.8,0.005]
[1724252052804,7.71445,2592.6,2592.1,0.12017111]
[1724252052981,3.85707,2592.7,2591.8,3.86321]
[1724252053312,3.85737,2592.5,2591.9,0.50667431]
[1724252053510,3.85737,2592.5,2591.9,0.12035331]
[1724252054221,3.85802,2592.0,2591.9,0.12035331]
[1724252054435,7.71604,2592.0,2591.9,0.12035331]
[1724252054722,3.85817,2591.9,2591.8,0.005]
[1724252054866,3.85789,2592.1,2591.8,0.005]
[1724252055066,3.85788,2592.1,2591.8,0.005]
[1724252055303,3.858,2592.1,2591.8,0.005]
[1724252055512,5.7331,2592.4,2591.8,0.005]
[1724252055513,3.85817,2591.9,2591.8,0.005]
[1724252055716,13.29614,2591.9,2591.8,0.005]
[1724252056116,16.29614,2591.9,2591.8,0.005]
[1724252056949,20.15431,2591.9,2591.8,0.005]
[1724252057406,20.15431,2591.9,2591.6,0.005]
[1724252057407,15.43388,2591.7,2591.6,1e-05]
[1724252057611,24.85355,2591.7,2591.6,1e-05]
[1724252057909,23.60928,2591.7,2591.6,1e-05]
[1724252058252,19.75081,2591.7,2591.6,1e-05]
[1724252059048,16.75081,2591.7,2591.6,1e-05]
[1724252059345,18.6274341,2591.7,2591.6,1e-05]
[1724252060405,21.6274341,2591.7,2591.6,1e-05]
[1724252060616,12.89234,2591.7,2591.6,1e-05]
[1724252061039,16.75081,2591.7,2591.6,1e-05]
[1724252062545,23.60928,2591.7,2591.6,1e-05]
[1724252062746,19.75081,2591.7,2591.6,1e-05]
[1724252063250,15.89234,2591.7,2591.6,1e-05]
[1724252063484,15.89234,2591.7,2591.2,0.005]
[1724252063485,7.71812,2591.3,2591.2,0.005]
[1724252064179,14.57718,2591.3,2591.2,0.005]
[1724252064388,10.71812,2591.3,2591.2,0.005]
[1724252064533,14.57718,2591.3,2591.2,0.005]
[1724252064735,23.68734,2591.3,2591.2,0.005]
[1724252064980,22.582902,2591.3,2591.2,0.005]
[1724252065496,3.86062,2590.3,2589.6,9.29599]
[1724252065981,3.86062,2590.3,2589.7,0.12560526]
[1724252066330,3.86086,2590.1,2589.7,0.12560526]
[1724252066574,3.86086,2590.1,2589.4,3.9864298]
[1724252066575,3.86051,2590.4,2589.8,0.125514]
[1724252066780,3.86125,2589.9,2589.8,0.125514]
[1724252066995,3.86092,2590.1,2589.4,0.1246198]
[1724252067154,3.86092,2590.1,2589.8,0.125514]
[1724252067362,3.86109,2590.0,2589.4,0.1246198]
[1724252067681,3.86109,2590.0,2589.9,0.12542275]
[1724252067897,3.86156,2589.7,2589.4,0.1246198]
[1724252068037,0.386109,2590.0,2589.4,3.9864998]
[1724252068240,0.907571,2590.3,2589.8,3.86128]
[1724252068549,6.86004,2590.7,2589.5,3.98744781]
[1724252068550,3.8609,2590.1,2589.5,3.98744781]
[1724252068752,3.86065,2590.3,2589.9,0.12532946]
[1724252068993,7.7213,2590.3,2589.7,3.86136]
[1724252069286,7.7213,2590.3,2589.8,0.12635035]
[1724252069287,3.86115,2589.9,2589.8,0.12635035]
[1724252069654,5.15427,2590.3,2589.4,0.1246198]
[1724252069981,3.8614,2589.8,2589.4,0.1246198]
[1724252070198,3.8616,2589.6,2589.4,0.1246198]
[1724252070492,4.80469,2589.6,2589.4,0.1246198]
[1724252070838,5.5693,2590.0,2589.4,0.1246198]
[1724252071009,11.58522,2589.5,2589.4,0.1246198]
[1724252071297,11.58522,2589.5,2587.7,5.6927]
[1724252071298,3.8637,2588.2,2587.7,5.6927]
[1724252071509,7.72694,2588.4,2587.5,3.8646]
[1724252071644,5.282,2589.3,2588.0,5.4179]
[1724252071848,5.282,2589.3,2588.5,3.86313]
[1724252071849,3.86204,2589.3,2588.5,3.86313]
[1724252072066,3.86171,2589.6,2588.8,3.86267]
[1724252072424,3.86171,2589.6,2588.6,3.86301]
[1724252072582,3.8616,2589.6,2588.7,5.804201]
[1724252072783,3.8616,2589.6,2588.9,3.86255]
[1724252073109,12.14289,2590.1,2588.7,9.667071]
[1724252073110,3.86108,2590.0,2589.2,3.86213]
[1724252073319,3.86108,2590.0,2589.3,3.86195]
[1724252073467,3.86108,2590.0,2588.7,9.667091]
[1724252073468,3.86158,2589.7,2588.8,3.86278]
[1724252073810,3.86117,2589.9,2589.1,3.86229]
[1724252074012,3.86186,2589.5,2588.7,9.667001]
[1724252074223,3.86183,2589.5,2588.7,9.667001]
[1724252074384,3.8612,2589.9,2588.7,5.804201]
[1724252074711,3.86096,2590.1,2589.2,3.8621]
[1724252075014,3.86144,2589.8,2589.1,3.86224]
[1724252075177,3.86144,2589.8,2588.7,5.804201]
[1724252075178,3.86088,2590.1,2589.2,3.86209]
[1724252075384,3.86124,2589.9,2589.0,3.86237]
[1724252075581,3.86086,2590.1,2588.8,3.86265]
[1724252075762,3.86086,2590.1,2588.7,5.4179]
[1724252075763,3.86223,2589.2,2588.7,5.4179]
[1724252075966,3.8621,2589.3,2588.7,5.4179]
[1724252075967,3.86237,2589.1,2588.7,5.4179]
[1724252076234,3.86283,2588.8,2588.3,5.4057]
[1724252076425,3.86313,2588.6,2588.0,3.86387]
[1724252076921,3.0,2589.7,2587.9,5.4057]
[1724252076922,3.86256,2589.0,2587.9,5.4057]
[1724252077125,3.85988,2590.8,2588.8,3.8627]
[1724252077126,5.3897,2589.8,2588.8,3.8627]
[1724252077264,3.85988,2590.8,2588.8,3.8627]
[1724252077265,3.86119,2589.9,2589.0,3.86245]
[1724252077459,4.247309,2589.9,2588.8,5.4057]
[1724252077662,3.86205,2589.3,2588.4,3.86325]
[1724252077976,3.86257,2589.0,2588.3,9.20163]
[1724252078215,3.86257,2589.0,2587.7,3.86429]
[1724252078216,3.86347,2588.4,2587.8,5.3381]
[1724252078455,3.86347,2588.4,2587.5,3.86463]
[1724252078456,3.86367,2588.3,2587.5,3.86463]
[1724252078584,3.86367,2588.3,2587.6,3.86448]
[1724252078765,4.636132,2588.4,2587.2,3.86506]
[1724252078766,6.013362,2588.4,2587.2,3.86506]
[1724252078967,6.013362,2588.4,2586.9,9.20361]
[1724252078968,3.86461,2587.6,2586.9,9.20361]
[1724252079219,3.86461,2587.6,2586.9,6.27092298]
[1724252079429,3.86497,2587.4,2586.4,5.3626]
[1724252079600,3.86497,2587.4,2586.7,3.86581]
[1724252079807,3.86529,2587.2,2586.4,9.22891]
[1724252080313,5.3926,2587.6,2586.7,3.86579]
[1724252080314,9.25725,2587.6,2586.7,3.86579]
[1724252080514,6.86387,2588.1,2587.3,3.8649]
[1724252080515,9.32225,2588.1,2587.3,3.8649]
[1724252080679,9.32225,2588.1,2587.4,3.86487]
[1724252080884,0.772662,2588.4,2587.2,9.44009]
[1724252081302,3.86407,2588.0,2586.8,5.6996198]
[1724252081520,3.86447,2587.7,2587.0,3.86543]
[1724252081682,3.86441,2587.8,2587.0,3.86537]
[1724252082063,3.86403,2588.0,2587.1,3.86522]
[1724252082283,0.7636022,2588.3,2586.9,0.95654698]
[1724252082284,0.7636022,2588.3,2587.3,3.865]
[1724252082479,0.772662,2588.4,2587.3,0.3865]
[1724252082747,3.86352,2588.4,2587.7,3.86439]
[1724252082883,9.32144,2588.6,2587.7,3.86439]
[1724252083237,9.32144,2588.6,2587.5,3.86468]
[1724252083238,7.72693,2588.4,2587.6,3.86457]
[1724252083435,3.86315,2588.6,2587.9,3.86403]
[1724252083726,3.86322,2588.6,2587.9,3.86409]
[1724252083938,0.772609,2588.6,2588.0,0.12577502]
[1724252084325,3.86192,2589.4,2588.2,5.431]
[1724252084484,3.86206,2589.3,2588.6,3.86305]
[1724252084709,3.86164,2589.6,2588.9,3.86253]
[1724252084996,4.247369,2589.9,2589.1,3.86232]
[1724252085326,3.86049,2590.4,2589.7,3.86145]
[1724252085524,3.86049,2590.4,2589.6,3.86148]
[1724252085876,5.2386,2590.7,2589.8,0.12351591]
[1724252086105,5.2386,2590.7,2589.0,5.2008]
[1724252086106,3.314,2590.3,2589.0,5.2008]
[1724252086362,3.86143,2589.8,2589.0,12.92563]
[1724252086569,4.19217,2590.2,2589.1,0.12414389]
[1724252086871,3.86045,2590.4,2589.6,3.86149]
[1724252087025,3.86026,2590.5,2589.8,3.86119]
[1724252087224,3.86058,2590.3,2589.5,3.86173]
[1724252087404,3.86033,2590.5,2589.8,3.86129]
[1724252087608,3.86001,2590.7,2589.9,0.12312267]
[1724252087919,3.86001,2590.7,2590.0,3.86099]
[1724252088109,3.86001,2590.7,2589.9,0.12312267]
[1724252088306,9.28352,2591.1,2590.3,3.86052]
[1724252088307,13.143,2591.1,2590.3,3.86052]
[1724252088528,3.85968,2590.9,2590.2,3.86056]
[1724252088741,3.85968,2590.9,2590.0,3.98394143]
[1724252089057,5.4241,2591.1,2589.9,0.95065127]
[1724252089269,5.4183,2590.5,2590.1,0.12294019]
[1724252089585,5.4183,2590.5,2588.5,5.307]
[1724252089586,3.86189,2589.5,2588.7,3.86284]
[1724252089780,3.86111,2590.0,2588.5,9.17021]
[1724252089781,3.86214,2589.3,2588.5,9.17021]
[1724252089956,3.86214,2589.3,2588.6,0.917021]
[1724252090121,3.86214,2589.3,2588.1,3.86377]
[1724252090122,3.86273,2588.9,2588.1,5.2541]
[1724252090327,3.86239,2589.1,2588.2,3.86358]
[1724252090581,3.86239,2589.1,2588.4,3.86324]
[1724252090722,3.86239,2589.1,2588.2,3.8636]
[1724252090723,3.86264,2589.0,2588.2,7.72716]
[1724252090923,3.8627,2588.9,2588.2,7.72717]
[1724252091161,3.86213,2589.3,2588.2,1.298127]
[1724252091339,3.86185,2589.5,2588.7,3.86283]
[1724252091869,3.86185,2589.5,2588.1,9.11789]
[1724252091870,9.60303,2589.7,2588.9,3.86253]
[1724252092020,3.86207,2589.3,2588.1,5.2541]
[1724252092224,7.72366,2589.5,2588.8,3.86279]
[1724252092469,3.86181,2589.5,2588.7,3.86283]
[1724252092774,3.86247,2589.1,2588.4,3.86337]
[1724252092935,3.86228,2589.2,2588.5,3.86322]
[1724252093136,3.86191,2589.4,2588.2,3.86361]
[1724252093381,3.8629,2588.8,2588.0,7.72776]
[1724252093530,3.86269,2588.9,2588.2,3.86358]
[1724252093880,3.86324,2588.5,2587.9,3.86408]
[1724252094073,3.86295,2588.7,2588.0,3.86396]
[1724252094220,3.86266,2588.9,2588.0,0.386396]
[1724252094421,0.386191,2589.3,2588.1,3.86378]
[1724252094626,3.86286,2588.8,2588.2,3.86368]
[1724252094925,4.248281,2589.3,2588.0,4.250336]
[1724252094926,7.72457,2589.2,2588.4,3.86328]
[1724252095280,3.86186,2589.5,2588.7,3.8628]
[1724252095429,8.4053,2589.8,2588.3,3.86341]
[1724252095430,0.6700111,2589.7,2588.3,3.86341]
[1724252095626,7.72489,2589.1,2588.3,3.86341]
[1724252095869,3.86211,2589.3,2588.6,3.86305]
[1724252096027,3.86244,2589.1,2588.4,3.86334]
[1724252096226,3.86244,2589.1,2588.3,3.86352]
[1724252096227,3.86254,2589.0,2588.1,7.72744]
[1724252096469,3.86282,2588.8,2588.2,8.04775291]
[1724252096653,3.86237,2589.1,2588.5,3.86324]
[1724252096975,3.86196,2589.4,2588.5,5.3325]
[1724252097124,3.86213,2589.3,2588.7,3.8628]
[1724252097329,3.86213,2589.3,2588.6,0.11961158]
[1724252097678,4.5314911,2589.7,2588.5,4.40834856]
[1724252097679,3.86178,2589.5,2588.7,3.86291]
[1724252097891,3.86178,2589.5,2588.9,3.8626]
[1724252098179,3.86178,2589.5,2588.7,3.86291]
[1724252098180,3.86205,2589.3,2588.8,0.11942892]
[1724252098377,3.86154,2589.7,2589.0,0.11924628]
[1724252098580,7.72361,2589.5,2588.9,3.98188759]
[1724252098785,3.86201,2589.4,2589.1,0.11915497]
[1724252098983,3.86206,2589.3,2589.0,0.11924628]
[1724252099182,3.86206,2589.3,2589.2,0.11906366]
[1724252099382,3.86219,2589.2,2589.1,0.11915497]
[1724252099683,3.86281,2588.8,2588.1,9.19633]
[1724252099835,0.772425,2589.2,2588.4,3.86329]
[1724252099836,8.497005,2589.2,2588.4,3.86329]
[1724252100041,4.634695,2589.2,2588.4,3.86329]
[1724252100389,3.86168,2589.6,2588.8,3.86276]
[1724252100532,3.86168,2589.6,2588.9,3.86256]
[1724252100533,3.86169,2589.6,2588.9,3.86256]
[1724252100732,3.8625,2589.0,2588.1,5.3325]
[1724252101038,5.4053,2589.8,2588.1,5.3325]
[1724252101039,3.86208,2589.3,2588.1,5.3325]
[1724252101207,5.6366,2589.1,2587.7,5.2677]
[1724252101491,3.86273,2588.9,2587.8,0.52677]
[1724252101705,3.86273,2588.9,2588.3,3.86345]
[1724252101881,3.86223,2589.2,2588.5,3.86314]
[1724252102085,3.86223,2589.2,2588.3,7.72687]
[1724252102397,3.86223,2589.2,2588.3,7.72685]
[1724252102558,3.8631,2588.6,2587.8,0.52677]
[1724252102763,3.86257,2589.0,2588.3,3.86349]
[1724252102964,3.86272,2588.9,2588.3,3.86349]
[1724252103179,3.86304,2588.7,2587.9,3.86405]
[1724252103380,3.86366,2588.3,2587.7,5.2677]
[1724252103594,3.86385,2588.1,2587.4,3.86485]
[1724252103766,7.72724,2588.3,2587.5,0.943185]
[1724252103967,3.86334,2588.5,2587.5,0.943185]
[1724252104296,3.86334,2588.5,2587.6,3.86448]
[1724252104447,3.86313,2588.6,2587.4,3.86475]
[1724252104648,3.86413,2587.9,2587.2,3.86512]
[1724252104863,4.250543,2587.9,2587.2,3.86512]
[1724252105160,3.86389,2588.1,2586.9,5.2647]
[1724252105161,3.86387,2588.1,2587.4,3.86478]
[1724252105359,3.86409,2588.0,2587.2,7.73021]
[1724252105557,3.86375,2588.2,2587.3,3.86493]
[1724252105800,3.86399,2588.0,2587.3,3.86493]
[1724252105974,4.1738,2588.7,2587.0,3.86547]
[1724252105975,3.86452,2587.7,2587.0,3.86547]
[1724252106201,3.8644,2587.8,2587.0,3.86547]
[1724252106506,3.86402,2588.0,2587.3,3.86501]
[1724252106674,9.24192,2588.2,2587.4,4.251281]
[1724252106884,5.3782,2588.2,2587.1,3.8652]
[1724252107109,5.3782,2588.2,2586.9,5.2647]
[1724252107110,3.86408,2588.0,2586.9,5.2647]
[1724252107275,3.86424,2587.9,2587.2,3.86517]
[1724252107621,0.386424,2587.9,2587.1,3.86527]
[1724252107823,5.3782,2588.2,2587.4,3.86485]
[1724252108123,3.86328,2588.5,2587.2,3.86512]
[1724252108278,5.1871,2589.2,2588.1,3.86377]
[1724252108484,3.86247,2589.1,2588.4,3.86327]
[1724252108686,5.1871,2589.2,2588.6,3.86304]
[1724252108888,0.904921,2589.2,2587.8,5.4002]
[1724252109213,0.904921,2589.2,2588.2,3.86365]
[1724252109214,3.86236,2589.1,2588.2,3.86365]
[1724252109380,3.86236,2589.1,2588.4,3.86336]
[1724252109585,3.86209,2589.3,2588.6,3.86298]
[1724252109801,9.04907,2589.4,2588.7,3.86281]
[1724252109982,3.86215,2589.3,2588.6,4.249278]
[1724252110167,3.86215,2589.3,2588.8,0.12005528]
[1724252110509,3.86226,2589.2,2588.9,0.11996395]
[1724252110715,1.291151,2589.2,2587.4,3.76721173]
[1724252111040,3.86349,2588.4,2587.6,3.86447]
[1724252111185,3.86408,2588.0,2587.3,3.86493]
[1724252111535,3.86414,2587.9,2587.2,3.86511]
[1724252111683,5.6562,2588.2,2587.0,5.6096]
[1724252111684,3.8639,2588.1,2587.0,5.6096]
[1724252111885,3.86332,2588.5,2587.8,3.86427]
[1724252112214,9.51921,2588.7,2587.7,5.2109]
[1724252112423,0.60590015,2589.5,2587.7,5.2109]
[1724252112424,3.86273,2588.9,2587.7,5.2109]
[1724252112581,3.86317,2588.6,2587.9,3.86401]
[1724252112786,3.86259,2589.0,2587.8,0.52109]
[1724252112969,3.86248,2589.1,2588.0,4.53467612]
[1724252113170,3.86237,2589.1,2588.5,3.86309]
[1724252113398,3.86259,2589.0,2588.3,3.86342]
[1724252113599,0.386259,2589.0,2588.1,0.12069474]
[1724252113833,3.86323,2588.6,2588.4,0.12042064]
[1724252113993,3.86303,2588.7,2587.7,5.2109]
[1724252114179,3.86303,2588.7,2588.5,0.12032929]
[1724252114377,3.86341,2588.4,2587.7,9.07523]
[1724252114588,3.86341,2588.4,2587.7,3.86433]